Cogmind - Beta 11.1 @@@ ROGUE MODE // 2022.05.17 @ 10:58:03 Player: Flowthing Result: Destroyed by as-20579 with Assembled Blade Performance ------------- Evolutions (0) 0 Regions Visited (2) 400 Robots Destroyed (18) 90 Value Destroyed (475) 475 Prototype IDs (0) 0 Alien Tech Used (0) 0 Bonus (0) 0 TOTAL SCORE: 965 Bonus ------- None Cogmind --------- Core Integrity 0/250 Matter 299/300 Energy 265/265 System Corruption 0% Temperature Hot (232) Movement Treading (240) Ox1 Location -10/Mines Parts ------- > --- POWER (1) -------- Improved Ion Engine > --- PROPULSION (2) --- Light Treads Light Treads > --- UTILITY (2) ------ Heat Sink High-capacity Storage Unit > --- WEAPON (2) ------- Spread Laser Spread Laser > --- INVENTORY (20) --- Improved Ion Engine Light Treads Aluminum Leg Aluminum Leg Wheel Spread Laser Spread Laser Peak State ------------ > --- POWER ------------ Improved Ion Engine > --- PROPULSION ------- Aluminum Leg Aluminum Leg > --- UTILITY ---------- Small Storage Unit Light Armor Plating > --- WEAPON ----------- Spread Laser Spread Laser > --- INVENTORY -------- Ion Engine Light Treads Light Treads Aluminum Leg Aluminum Leg Wheel Spread Laser Spread Laser [Rating: 11] Favorites ----------- Power Improved Ion Engine Engine Improved Ion Engine Propulsion Light Treads Treads Light Treads Leg Aluminum Leg Utility Light Armor Plating Device Heat Sink Storage High-capacity Storage Unit Protection Light Armor Plating Weapon Spread Laser Energy Gun Spread Laser Energy Cannon Beam Cannon Ballistic Gun Assault Rifle Build | -11 -10 -10 ------- Run | Scr Mat Min Slots Evolved . | . . . Power . | . . . Propulsion . | . . . Utility . | . . . Weapon . | . . . Parts Attached 13 | . 12 1 Power 2 | . 2 . Engine 2 | . 2 . Core . | . . . Reactor . | . . . Propulsion 3 | . 3 . Treads 2 | . 2 . Leg 1 | . 1 . Wheel . | . . . Hover . | . . . Flight . | . . . Utility 4 | . 3 1 Device 2 | . 1 1 Storage 1 | . 1 . Processor . | . . . Hackware . | . . . Protection 1 | . 1 . Artifact . | . . . Weapon 4 | . 4 . Energy Gun 3 | . 3 . Energy Cannon 1 | . 1 . Ballistic Gun . | . . . Ballistic Cannon . | . . . Launcher . | . . . Special Weapon . | . . . Impact Weapon . | . . . Slashing Weapon . | . . . Piercing Weapon . | . . . Special Melee Weapon . | . . . Unidentified Prototypes . | . . . Parts Lost 4 | . 3 1 Power 1 | . 1 . Propulsion 1 | . 1 . Utility 1 | . . 1 Weapon 1 | . 1 . Highest Loss Streak 2 | . 2 1 To Critical Strikes . | . . . Average Slot Usage (%) 97 | . 97 100 Engine 13 | . 13 14 Treads 19 | . 18 28 Leg 8 | . 9 . Device 1 | . . 4 Storage 14 | . 14 14 Protection 10 | . 11 9 Energy Gun 24 | . 23 28 Ballistic Gun 2 | . 3 . Naked Turns . | . . . Heaviest Build 56 | 14 56 56 Greatest Support 40 | 20 40 40 Greatest Overweight (x) 2 | . 2 1 Average Overweight (x) . | . . 1 Largest Inventory Capacity 20 | . 20 20 Average Capacity 16 | . 15 20 Most Carried 8 | . 8 8 Average Carried 7 | . 7 7 Final Capacity 20 | 8 20 20 Final Carried 8 | 6 8 7 Class Distribution -------------------- 100% | Mutant Dominant Class ---------------- Mutant | -10/Materials Mutant | -10/Mines Resources | -11 -10 -10 ----------- Run | Scr Mat Min Matter Collected 409 | 193 207 9 Remotely . | . . . Salvage Created 622 | . 592 30 Parts 34 | . 34 . Haulers Intercepted 1 | . 1 . Recyclers Shooed 2 | . 2 . Parts Field Recycled . | . . . Retrieved Matter . | . . . Parts Self-Destructed . | . . . Prevented . | . . . Kills | -11 -10 -10 ------- Run | Scr Mat Min Combat Hostiles Destroyed 18 | . 12 6 Guns 18 | . 12 6 Classes Destroyed 6 | . 5 1 Worker 2 | . 2 . Builder 1 | . 1 . Hauler 1 | . 1 . Watcher 2 | . 2 . Grunt 12 | . 12 . Assembled 6 | . . 6 Best Kill Streak 6 | . 6 6 Combat Bots Only 6 | . 2 6 Max Kills in Single Turn 2 | . 2 2 Gunslinging 1 | . 1 1 Exploded . | . . . Melee . | . . . Uniques/NPCs Destroyed . | . . . Combat | -11 -10 -10 -------- Run | Scr Mat Min Damage Taken 975 | . 689 286 Core 269 | . 135 134 Absorbed by Shields . | . . . Core Remaining (%) 100 | 100 . . Volleys Fired 61 | . 49 12 Largest 2 | . 2 2 Hottest 130 | . 130 130 Shots Fired 120 | . 97 23 Gun 119 | . 96 23 Cannon 1 | . 1 . Launcher . | . . . Special . | . . . Kinetic 31 | . 31 . Thermal 73 | . 50 23 Explosive . | . . . Electromagnetic 16 | . 16 . Robot Hit Streak 8 | . 8 8 Robot Miss Streak 5 | . 5 5 Penetration Max . | . . . Secondary Targets 5 | . 2 3 Max Gunslinging Chain 1 | . 1 1 Shots Hit Robots 95 | . 72 23 Core Hits 95 | . 59 36 Critical Kills . | . . . Critical Parts Destroyed 1 | . 1 . Critical Strikes 1 | . 1 . Destroy 1 | . 1 . Melee Attacks . | . . . Impact . | . . . Slashing . | . . . Piercing . | . . . Sneak Attacks . | . . . Combat Hostiles . | . . . Follow-up Attacks . | . . . Damage Inflicted 1255 | . 981 274 Guns 1245 | . 971 274 Cannons . | . . . Explosions . | . . . Melee . | . . . Ramming 10 | . 10 . Kinetic 258 | . 258 . Thermal 812 | . 538 274 Explosive . | . . . Electromagnetic 175 | . 175 . Impact . | . . . Slashing . | . . . Piercing . | . . . Highest Corruption . | . . . Average Corruption . | . . . Corruption Purged . | . . . Corruption Blocked . | . . . Overload Shots . | . . . Overflow Damage . | . . . Projectiles . | . . . Explosions . | . . . Melee . | . . . Knockbacks . | . . . Impact . | . . . Kinetic . | . . . Secondary . | . . . Self-Inflicted Damage . | . . . Shots . | . . . Rammed . | . . . Targets Rammed 2 | . 2 . Kicked 2 | . 2 . Crushed . | . . . Highest Temperature 407 | . 407 388 Average Temperature 154 | . 134 237 Received Heat Transfer 423 | . 363 60 Effects 4 | . 2 2 Interference 4 | . 2 2 Siege Activations . | . . . Robots Corrupted . | . . . Combat Hostiles . | . . . Parts Fried . | . . . Impact Corruptions . | . . . Robots Melted . | . . . Combat Hostiles . | . . . Parts Melted . | . . . Heat Transferred 1135 | . 780 355 Parts Sabotaged . | . . . Parts Stolen . | . . . Parts Stripped . | . . . Power Chain Reactions . | . . . Missiles Intercepted . | . . . Alert | -11 -10 -10 ------- Run | Scr Mat Min Peak Influence 184 | . 184 . Initial . | . . . Average 65 | . 73 . Maximum Alert Level . | . . . Low Security (%) 100 | . 100 100 Level 1 . | . . . Level 2 . | . . . Level 3 . | . . . Level 4 . | . . . Level 5 . | . . . High Security . | . . . Max Security . | . . . Squads Dispatched 4 | . 4 . Investigation . | . . . Extermination . | . . . Reinforcement 4 | . 4 . Assault . | . . . Garrison . | . . . Intercept . | . . . Searches Triggered . | . . . Construction Impeded . | . . . Haulers Reinforced . | . . . Active Scanning Responses . | . . . Cargo Convoy Interrupts . | . . . Stealth | -11 -10 -10 --------- Run | Scr Mat Min Distress Signals 3 | . 3 . Communications Jammed . | . . . Distress Signals . | . . . Times Spotted 41 | . 21 20 Peak Tracking Total 16 | . 3 16 Tactical Retreats 1 | . . 1 Traps | -11 -10 -10 ------- Run | Scr Mat Min Traps Triggered . | . . . Indirectly . | . . . Trap Hack Attempts . | . . . Triggered . | . . . Disarmed . | . . . Reprogrammed . | . . . Reused . | . . . Traps Extracted . | . . . Installed . | . . . Triggered . | . . . Machines | -11 -10 -10 ---------- Run | Scr Mat Min Machines Disabled . | . . . Max in Single Turn . | . . . Machines Sabotaged . | . . . Garrisons Compromised . | . . . Overloaded Fab Kills . | . . . Hacking | -11 -10 -10 --------- Run | Scr Mat Min Machines Accessed 5 | . 5 . Terminals 4 | . 4 . Fabricators . | . . . Repair Stations 1 | . 1 . Recycling Units . | . . . Scanalyzers . | . . . Garrison Access . | . . . Total Hacks 11 | . 11 . Successful 3 | . 3 . Failed 8 | . 8 . Catastrophic . | . . . Database Lockouts . | . . . Manual 9 | . 9 . Terminals 9 | . 9 . Fabricators . | . . . Repair Stations 2 | . 2 . Recycling Units . | . . . Scanalyzers . | . . . Garrison Access . | . . . Terminal Hacks . | . . . Fabricator Hacks . | . . . Repair Station Hacks 1 | . 1 . Scan Component 1 | . 1 . Recycling Unit Hacks . | . . . Scanalyzer . | . . . Garrison Access Hacks . | . . . Unauthorized Hacks 2 | . 2 . Terminals 2 | . 2 . Botnet 2 | . 2 . Fabricators . | . . . Repair Stations . | . . . Recycling Units . | . . . Scanalyzers . | . . . Garrison Access . | . . . Data Cores Recovered . | . . . Used . | . . . Hacking Detections 5 | . 5 . Full Trace Events . | . . . Feedback Events . | . . . Feedback Blocked . | . . . Robot Schematics Acquired . | . . . Robots Built . | . . . Authchips . | . . . Time . | . . . Total Robot Build Rating . | . . . Part Schematics Acquired . | . . . Parts Built . | . . . Authchips . | . . . Time . | . . . Total Part Build Rating . | . . . Parts Repaired . | . . . Time . | . . . Parts Recycled . | . . . Recycled Matter . | . . . Retrieved Matter . | . . . Retrieved Components . | . . . Parts Scanalyzed . | . . . Part Schematics Acquired . | . . . Parts Damaged . | . . . Bothacking | -11 -10 -10 ------------ Run | Scr Mat Min Used RIF Installer . | . . . Robots Hacked . | . . . Non-combat . | . . . Combat . | . . . Robot Hacks Applied . | . . . Relay Couplers Released . | . . . Fabnet Peak Effective % . | . . . Robots Rewired . | . . . Allies Hacked . | . . . Hacks Repelled . | . . . Allies | -11 -10 -10 -------- Run | Scr Mat Min Total Allies . | . . . Largest Group . | . . . Highest-Rated Group . | . . . Highest-Rated Ally . | . . . Total Orders . | . . . Ally Attacks . | . . . Total Damage . | . . . Kills . | . . . Allies Corrupted . | . . . Allies Melted . | . . . Intel | -11 -10 -10 ------- Run | Scr Mat Min Robot Analysis Total . | . . . Derelict Logs Recovered . | . . . Drone Launches . | . . . Drone Recoveries . | . . . Exploration | -11 -10 -10 ------------- Run | Scr Mat Min Turns Passed 1470 | . 1304 166 Spaces Moved 605 | 1 550 54 Core . | . . . Treads 375 | . 321 54 Legs 230 | 1 229 . Wheels . | . . . Hover . | . . . Flight . | . . . Fastest Speed 120 | 120 120 240 Average Speed 202 | 120 199 240 Slowest Speed 260 | 120 260 240 Overloaded Moves . | . . . Propulsion Burnouts . | . . . Robots Hopped . | . . . Cave-ins Triggered . | . . . Exploration Rate (%) 36 | 2 88 19 Regions Visited 2 Branch Regions 1 Pre-discovered Areas . | . . . Known Exits Taken . | . . . Unknown Exits Taken 2 | 1 1 . Scrap Searched . | . . . Spaces Dug . | . . . Terrain Destroyed . | . . . Melee . | . . . Projectile . | . . . AOE . | . . . Terrain Rammed . | . . . Walls Destroyed . | . . . Machines Disabled . | . . . Actions | -11 -10 -10 --------- Run | Scr Mat Min Total 729 | . 662 67 Wait 30 | . 30 . Move 603 | . 549 54 Hop . | . . . Pick Up 8 | . 8 . Fast Attach 8 | . 8 . Attach 2 | . 1 1 Detach 1 | . 1 . Swap 3 | . 3 . Drop 11 | . 11 . Fire 61 | . 49 12 Melee . | . . . Ram . | . . . Kick 2 | . 2 . Crush . | . . . Escape Stasis . | . . . Rewire . | . . . Trap . | . . . Miscellaneous . | . . . Route ------- -11/Scrapyard -10/Materials (discovered 4 exits: [*Mat x3] / [*Min]) -10/Mines History --------- Turn | Location | Event 1 | -11/Scrapyard | Discovered new exit (range 0) 1 | -11/Scrapyard | Entered Materials 345 | -10/Materials | Build established: Mutant 404 | -10/Materials | Discovered new exit (range 3) 580 | -10/Materials | Core integrity fell below 50% 636 | -10/Materials | Discovered new exit (range 15) 711 | -10/Materials | Discovered new exit (range 8) 1056 | -10/Materials | Discovered new exit (range 9) 1305 | -10/Materials | Entered Mines 1405 | -10/Mines | Assembled infested the area 1460 | -10/Mines | Core integrity fell below 20% 1471 | -10/Mines | Destroyed by as-20579 with Assembled Blade Last Messages --------------- 01189_ K-01 Serf cleans the Terminal. LOCATION=UNKNOWN GOAL=ESCAPE 01366_ K-01 Serf collects debris. 01405_ ALERT: Infestation in the mines, dispatching Demolisher response squad. 01422_ Lgt. Armor Plating destroyed. 01425_ as-85042 destroyed. 01425_ Switching to secondary target: as-89440. 01428_ as-89440 destroyed. 01428_ Switching to secondary target: as-03826. 01434_ as-58749 destroyed. 01434_ Switching to secondary target: as-03826. 01434_ as-03826 destroyed. 01435_ Acquired 9 matter. 01447_ as-37262 destroyed. 01453_ as-46562 destroyed. 01457_ Overheating: System interference. 01457_ Heat Sink temporarily disabled. 01457_ Spread Laser temporarily disabled. Map ----- +----------------------------------------------------+ | #??????# #?????????????????????????????????? | | ????????# #?????????????????????????????????? | | ?????????## #?????????????????????????????????? | | ??????????## #?????????????????????????????????? | | ??????????# #?????????????????????????????????? | | ??????????# #????? #??????????????????????????? | | ??????????# #???? ##?????????????????????????? | | ??????????## ##?# #?????????????????????????? | | ???????????# ## #?????????????????????????? | | ???????????# #?????????????????????????? | | ???????????# """" ##????????????????????????? | | ?????????#### """" ##???????????????????????? | | ?????????# """" #???????????????????????? | | ?????????# #???????????????????????? | | ?????????# #### ## #??????????????????????? | | ?????????# ???# #?? ???????????????????????? | | ?????????#????# #???? ? ??????????????????????? | | ??????????????# #???????????????????????????????? | | ??????????????# #???????????????????????????????? | | ??????????????# ##??????????????????????????????? | | ??????????????# ##?????????????????????????????? | | ??????????????# #?????????????????????????????? | | ??????????????## ##????????????????????????????? | | ??????????????## ##???????????????????????????? | | ??????????????# #######?????????????????????? | | ??????????????# @ #?????????????????????? | | ??????????????## ######a#?????????????????????? | | ???????????????######????#a#?????????????????????? | | ?????????????????????????# #?????????????????????? | | ?????????????????????????# #?????????????????????? | | ?????????????????????????#%##########????????????? | | ?????????????????????????# %%% $ #???????? | | ????????????????????# ####### ##????????????? | | ????????????????????# ######?????????????????????? | | ?????????????????????????????????????????????????? | | ?????????????????????????????????????????????????? | | ?????????????????????????????????????????????????? | | ?????????????????????????????????????????????????? | | ?????????????????????????????????????????????????? | | ?????????????????????????????????????????????????? | | ?????????????????????????????????????????????????? | | ?????????????????????????????????????????????????? | | ?????????????????????????????????????????????????? | | ?????????????????????????????????????????????????? | | ?????????????????????????????????????????????????? | | ?????????????????????????????????????????????????? | | | | | | | | | +----------------------------------------------------+ Best States ------------- Heat Dissipation 35 Energy Generation 12 Energy Capacity 265 Matter Stores 300 Matter Capacity 300 Sight Range 16 Terrain Scan Density 10 Armor Coverage 150 Evasion (%) 55 Recoil Reduction 2 Item Schematics ----------------- None Robot Schematics ------------------ None Fabricated ------------ Nothing Alien Tech Used ----------------- None Achievements -------------- None Challenges ------------ None Game ------ Seed NeutronDisruptorBeamcaster Manual? 0 Play Time 00:08:52 Cumulative 43.9 hours Start 2022.05.17 @ 10:50:12 End 2022.05.17 @ 10:58:03 Sessions 1 Manual Loads 0 Difficulty Rogue Special Mode None Game No. 44 Rogue 44 Adventurer 0 Explorer 0 Win Type - Total 0 Types 0/0/0/0/0/0/0/0/0 Lore% 31 Gallery% 44 Achievement% 29 Wizard Run 0 Options --------- ASCII 0 Keyboard 1 Movement Numpad Keybinds 0 Fullscreen 1 Font 36/Smallcaps Map View 76x50 Tactical HUD 1 Map Filters NONE Filters NONE Steam 1 RUN: 05a94dc2-6de3-482a-a5c3-5f74bdd6cb74